bitfinex/quotes_ETHUSD_20250422
["timestamp","ask_amount","ask_price","bid_price","bid_amount"]
[1745299711371,6.35382137,1573.9,1573.7,4.48529602]
[1745299711561,6.35382137,1573.9,1573.8,3.0]
[1745299712960,6.35345829,1574.0,1573.8,3.0]
[1745299713163,6.35345829,1574.0,1573.9,3.67269602]
[1745299716678,0.826,1574.2,1574.0,3.0]
[1745299716973,6.35219022,1574.3,1574.1,3.67269602]
[1745299717173,6.35243298,1574.2,1574.1,3.67269602]
[1745299720280,6.35283654,1574.1,1574.0,8.368]
[1745299721187,0.7877,1574.4,1574.0,9.22043062]
[1745299721360,6.35243298,1574.2,1574.1,3.67269602]
[1745299723990,6.35243298,1574.2,1574.1,4.15496399]
[1745299724150,6.35243298,1574.2,1574.1,3.67269602]
[1745299724478,7.14013298,1574.2,1574.1,3.67269602]
[1745299730400,6.35243298,1574.2,1574.1,3.67269602]
[1745299730966,6.35222409,1574.3,1574.1,3.67269602]
[1745299731365,6.35222409,1574.3,1574.2,1.61235052]
[1745299733306,6.35222409,1574.3,1574.1,3.66813242]
[1745299733307,6.35256048,1574.2,1574.1,3.66813242]
[1745299736616,6.35222409,1574.3,1574.1,3.66813242]
[1745299737506,6.35243298,1574.2,1574.1,3.66813242]
[1745299744914,6.35222409,1574.3,1574.1,3.66813242]
[1745299745122,12.70460643,1574.3,1574.1,3.66813242]
[1745299745620,6.35243298,1574.2,1574.1,3.66813242]
[1745299748315,6.35243298,1574.2,1574.1,9.03313242]
[1745299749419,6.35222409,1574.3,1574.1,9.03313242]
[1745299749715,13.50699223,1574.6,1574.2,9.35236671]
[1745299749920,6.35127436,1574.5,1574.4,3.0]
[1745299753322,7.15581388,1574.6,1574.4,3.46951157]
[1745299753526,6.35147318,1574.5,1574.3,4.45613242]
[1745299754030,6.35147318,1574.5,1574.4,5.365]
[1745299756323,6.35147318,1574.5,1574.4,8.365]
[1745299760925,6.35101435,1574.6,1574.4,8.365]
[1745299760926,6.35101435,1574.6,1574.4,9.153]
[1745299761131,12.70128943,1574.7,1574.5,3.66813242]
[1745299761498,6.35081925,1574.6,1574.5,3.66813242]
[1745299763436,6.35058508,1574.7,1574.5,3.66813242]
[1745299763731,6.35023428,1574.8,1574.5,3.66813242]
[1745299763924,6.3497883,1574.9,1574.8,3.66813242]
[1745299766244,6.34930401,1575.0,1574.8,9.50371393]
[1745299766556,6.34930401,1575.0,1574.8,10.33151393]
[1745299766706,6.34921281,1575.0,1574.8,10.33151393]
[1745299767404,12.42900564,1575.1,1574.8,10.33151393]
[1745299767622,6.34900564,1575.1,1575.0,3.66813242]
[1745299767818,6.34900564,1575.1,1575.0,6.66813242]
[1745299770753,12.52772719,1575.4,1575.1,3.0]
[1745299770754,6.34835359,1575.3,1575.1,3.0]
[1745299771123,12.69663472,1575.3,1575.1,3.0]
[1745299771447,6.34828113,1575.3,1575.1,3.0]
[1745299771813,12.69667383,1575.3,1575.1,3.0]
[1745299772015,6.3484002,1575.2,1575.0,4.49593242]
[1745299772749,6.34828113,1575.3,1575.0,4.49593242]
[1745299773348,6.34842551,1575.2,1575.0,4.49593242]
[1745299773845,6.34880325,1575.1,1575.0,4.49593242]
[1745299774034,6.34842551,1575.2,1575.0,3.66813242]
[1745299774552,6.34817159,1575.3,1575.0,3.66813242]
[1745299774716,12.69644938,1575.3,1575.0,3.66813242]
[1745299774911,12.69649307,1575.3,1575.0,3.66813242]
[1745299775116,6.34817159,1575.3,1575.0,3.66813242]
[1745299775447,0.8775,1575.4,1575.3,3.0]
[1745299775448,0.1,1575.4,1575.3,3.0]
[1745299775611,6.44759426,1575.4,1575.3,3.0]
[1745299777252,0.1,1575.4,1575.3,3.0]
[1745299777424,6.44759426,1575.4,1575.3,3.0]
[1745299777823,6.44759426,1575.4,1575.3,3.47459803]
[1745299779162,6.44759426,1575.4,1575.2,8.361]
[1745299779163,6.3479972,1575.3,1575.2,8.361]
[1745299783166,6.3479972,1575.3,1575.2,8.82554662]
[1745299783464,6.44759426,1575.4,1575.2,8.82554662]
[1745299783649,12.79556329,1575.4,1575.2,8.82554662]
[1745299783850,6.3479972,1575.3,1575.2,8.82554662]
[1745299786128,6.3479972,1575.3,1575.2,8.361]
[1745299786323,7.62755635,1575.3,1575.2,8.361]
[1745299786583,7.62755635,1575.3,1575.2,3.0]
[1745299788169,6.3484002,1575.2,1575.0,5.361]
[1745299788338,6.34880325,1575.1,1575.0,5.361]
[1745299788541,6.34880325,1575.1,1575.0,8.361]
[1745299788762,6.34880325,1575.1,1575.0,5.361]
[1745299789156,6.34880325,1575.1,1575.0,8.361]
[1745299789939,6.34880325,1575.1,1575.0,5.361]
[1745299793276,7.1489002,1575.2,1575.0,5.361]
[1745299793485,6.3484002,1575.2,1575.0,5.361]
[1745299794596,6.34880325,1575.1,1575.0,5.361]
[1745299796705,6.3484002,1575.2,1575.0,8.361]
[1745299796995,12.42813082,1575.3,1575.1,4.42233242]
[1745299797296,18.77650121,1575.3,1575.1,4.42233242]
[1745299797460,6.3484002,1575.2,1575.1,4.42233242]
[1745299797660,12.42813082,1575.3,1575.1,7.42233242]
[1745299797864,18.77643409,1575.3,1575.1,7.42233242]
[1745299798882,12.69643409,1575.3,1575.1,7.42233242]
[1745299799497,6.3484002,1575.2,1575.1,7.42233242]
[1745299800196,6.34813082,1575.3,1575.1,7.42233242]
[1745299800390,6.44781645,1575.4,1575.2,3.0]
[1745299800991,6.44759426,1575.4,1575.3,6.66813242]
[1745299806926,6.44759426,1575.4,1575.3,7.15137431]
[1745299807423,6.44759426,1575.4,1575.3,6.66813242]
[1745299808732,7.22519426,1575.4,1575.3,3.0]
[1745299809017,7.22519426,1575.4,1575.0,6.1152]
[1745299809018,6.34880325,1575.1,1575.0,5.359]
[1745299809435,6.34880325,1575.1,1575.0,8.359]
[1745299810120,6.34880325,1575.1,1575.0,5.359]
[1745299810419,7.14270325,1575.1,1575.0,5.359]
[1745299815323,7.14270325,1575.1,1575.0,5.82478235]
[1745299815523,12.42859279,1575.2,1575.0,9.49291477]
[1745299815688,12.42859279,1575.2,1575.0,10.31691477]
[1745299815689,6.34859279,1575.2,1575.0,10.31691477]
[1745299816935,6.34880325,1575.1,1575.0,10.31691477]
[1745299817837,6.34880325,1575.1,1575.0,9.49291477]
[1745299818322,6.34880325,1575.1,1575.0,5.359]
[1745299818497,12.42880325,1575.1,1575.0,5.359]
[1745299819501,7.14310634,1575.0,1574.7,20.93]
[1745299819726,6.3500127,1574.8,1574.7,26.29]
[1745299820533,12.69969877,1574.9,1574.7,26.29]
[1745299820733,6.3500127,1574.8,1574.7,26.29]
[1745299822230,6.34980163,1574.9,1574.7,26.29]
[1745299822757,12.69973175,1574.9,1574.7,26.29]
[1745299822920,6.34980163,1574.9,1574.7,26.29]
[1745299823560,6.34980163,1574.9,1574.7,26.76135409]
[1745299823941,6.34980163,1574.9,1574.7,5.83135409]
[1745299824459,12.69890635,1575.0,1574.7,5.83135409]
[1745299824806,6.34941674,1575.0,1574.8,3.66813242]
[1745299825636,6.34960949,1574.9,1574.8,3.66813242]
[1745299826642,6.34941674,1575.0,1574.8,3.66813242]
[1745299827049,6.34960949,1574.9,1574.8,3.66813242]
[1745299846040,6.3500127,1574.8,1574.7,9.02813242]
[1745299846236,6.3500127,1574.8,1574.7,5.36]
[1745299848771,12.4300127,1574.8,1574.7,5.36]
[1745299851274,12.4300127,1574.8,1574.7,6.97110457]
[1745299858548,12.4300127,1574.8,1574.7,5.36]
[1745299858846,13.1909127,1574.8,1574.7,5.36]
[1745299859048,13.1909127,1574.8,1574.4,0.7567]
[1745299859049,6.35122261,1574.5,1574.4,0.7567]
[1745299859248,6.08,1574.6,1574.4,7.72680457]
[1745299859447,12.43093087,1574.6,1574.5,1.61110457]
[1745299859976,12.43081925,1574.6,1574.5,1.61110457]
[1745299860339,6.08,1574.6,1574.5,1.61110457]
[1745299863180,12.43081925,1574.6,1574.5,1.61110457]
[1745299865170,6.08,1574.6,1574.5,1.61110457]
[1745299865394,6.08,1574.6,1574.5,10.37623175]
[1745299866380,6.08,1574.6,1574.5,4.02500914]
[1745299867583,6.08,1574.6,1574.5,10.37623175]
[1745299869190,12.43026795,1574.8,1574.5,10.37623175]
[1745299869378,12.43026795,1574.8,1574.7,1.61110457]
[1745299869866,12.43026795,1574.8,1574.7,6.96910457]
[1745299873278,15.13067243,1574.8,1574.7,5.358]
[1745299878910,6.08,1574.8,1574.7,6.96910457]
[1745299880311,6.08,1574.9,1574.7,14.08453905]
[1745299880514,18.7781155,1575.1,1574.8,1.61110457]
[1745299880715,0.8224,1575.0,1574.7,5.358]
[1745299880893,6.3500127,1574.8,1574.7,6.96910457]
[1745299881280,6.3500127,1574.8,1574.7,5.358]
[1745299882717,6.35041595,1574.7,1574.6,4.43099186]
[1745299882908,6.35041595,1574.7,1574.6,9.02369186]
[1745299885637,12.42980962,1574.9,1574.6,9.83469186]
[1745299886512,12.42980962,1574.9,1574.6,16.18550189]
[1745299886706,6.08,1574.9,1574.6,16.18530825]
[1745299887201,6.08,1574.9,1574.8,3.66569186]
[1745299887521,6.08,1574.9,1574.8,4.47669186]
[1745299888683,6.08,1574.9,1574.8,10.82670456]
[1745299889923,6.34894188,1575.1,1574.8,11.29715231]
[1745299890218,18.77735428,1575.2,1574.8,11.29715231]
[1745299890417,6.34881381,1575.1,1574.8,11.29715231]
[1745299890723,12.428662,1575.2,1574.8,11.29715231]
[1745299891021,6.08,1575.2,1575.0,4.47669186]
[1745299891219,6.08,1575.2,1575.1,5.357]
[1745299891386,12.42824416,1575.3,1575.1,5.357]
[1745299892831,18.7766082,1575.3,1575.1,5.357]
[1745299893035,6.3484002,1575.2,1575.1,5.357]
[1745299907449,12.4284002,1575.2,1575.1,5.357]
[1745299913754,12.4284002,1575.2,1575.1,5.307]
[1745299921393,6.08,1575.2,1575.1,6.1027]
[1745299924873,6.34800125,1575.3,1575.1,6.1027]
[1745299925082,6.3484002,1575.2,1575.1,6.1027]
[1745299926669,6.3484002,1575.2,1575.1,5.307]
[1745299927885,7.1523002,1575.2,1575.1,5.307]
[1745299928967,6.34960949,1574.9,1574.7,5.40630396]
[1745299929169,12.42960949,1574.9,1574.8,5.353]
[1745299929882,6.08,1574.9,1574.8,6.96360396]
[1745299930891,6.08,1574.9,1574.8,13.31361666]
[1745299931185,6.08,1574.9,1574.8,14.53957886]
[1745299931384,6.08,1574.9,1574.8,16.59309077]
[1745299933687,12.42859723,1575.2,1574.8,22.94310347]
[1745299935082,12.42859723,1575.2,1574.8,16.59309077]
[1745299935257,12.42859723,1575.2,1574.9,0.06348919]
[1745299935576,12.42859723,1575.2,1574.8,16.59284123]
[1745299936381,12.42859723,1575.2,1574.8,22.94263463]
[1745299936552,12.42859723,1575.2,1574.9,0.06348921]
[1745299936874,12.42859723,1575.2,1574.8,16.59284123]
[1745299937081,12.42859723,1575.2,1575.0,5.353]
[1745299937583,12.42859723,1575.2,1575.0,6.1077]
[1745299939283,6.08,1575.2,1575.0,9.77181587]
[1745299939580,12.42821454,1575.3,1575.0,16.12096546]
[1745299940185,12.42821454,1575.3,1575.0,9.77181587]
[1745299940873,18.77656108,1575.3,1575.0,9.77181587]
[1745299941471,12.42821454,1575.3,1575.0,9.77181587]
[1745299942297,6.08,1575.3,1575.2,3.66411587]
[1745299942471,0.1,1575.4,1575.3,7.1026972]
[1745299942788,0.1,1575.4,1575.3,7.6526972]
[1745299943163,0.1,1575.4,1575.3,8.12982463]
[1745299945300,0.1,1575.4,1575.3,8.14862463]
[1745299947705,0.01338693,1575.7,1575.6,6.34678852]
[1745299947865,0.01338693,1575.7,1575.6,16.13640439]
[1745299948074,0.01338693,1575.7,1575.6,16.68640439]
[1745299949305,0.01338693,1575.7,1575.6,19.68640439]
[1745299951699,0.01338693,1575.7,1575.6,23.35052026]
[1745299951926,0.01338693,1575.7,1575.6,19.68640439]
[1745299952634,0.01338693,1575.7,1575.6,23.35052026]
[1745299952838,7.0092,1576.4,1576.2,3.66411587]
[1745299953005,7.0092,1576.4,1576.3,5.351]
[1745299953707,0.1,1576.4,1576.3,12.53190587]
[1745299953912,0.1,1576.4,1576.3,16.08190587]
[1745299954209,0.1,1576.4,1576.3,16.01847005]
[1745299955630,6.08,1576.8,1576.7,7.66586062]
[1745299955837,12.42036124,1577.2,1576.8,6.34162919]
[1745299956007,6.08,1577.2,1577.0,3.66411587]
[1745299956212,6.08,1577.2,1577.1,5.348]
[1745299956651,0.8292,1576.9,1576.6,3.48006499]
[1745299956824,6.34195839,1576.8,1576.7,5.348]
[1745299957018,7.17111562,1576.9,1576.7,5.348]
[1745299957339,6.34195839,1576.8,1576.7,5.348]
[1745299957720,7.17111562,1576.9,1576.7,5.348]
[1745299958149,7.17106917,1576.9,1576.7,5.348]
[1745299958349,8.49617609,1576.9,1576.7,5.348]
[1745299959235,7.17106917,1576.9,1576.7,5.348]
[1745299959553,13.51296474,1576.9,1576.7,5.348]
[1745299959852,7.17106917,1576.9,1576.7,5.348]
[1745299961951,6.885,1577.0,1576.7,9.01211587]
[1745299962245,13.22618185,1577.0,1576.7,9.01211587]
[1745299962547,6.885,1577.0,1576.7,15.35434349]
[1745299962843,13.22616928,1577.0,1576.7,15.35434349]
[1745299963080,19.56765751,1577.0,1576.7,9.01211587]
[1745299964836,6.3416304,1576.9,1576.7,9.01211587]
[1745299965172,6.34195839,1576.8,1576.7,5.348]
[1745299965458,6.34276883,1576.6,1576.2,0.8173]
[1745299965619,7.17624225,1576.5,1576.4,5.346]
[1745299965952,7.17624225,1576.5,1576.0,4.48141587]
[1745299965953,6.34409922,1576.3,1576.2,5.346]
[1745299966151,6.34409922,1576.3,1576.2,9.01011587]
[1745299966326,6.34409922,1576.3,1576.2,5.346]
[1745299967228,6.34367004,1576.4,1576.2,5.346]
[1745299967558,7.17610242,1576.5,1576.2,5.346]
[1745299968263,12.42295476,1576.6,1576.3,3.66411587]
[1745299968454,6.9128,1576.6,1576.3,3.66411587]
[1745299968631,13.25569653,1576.6,1576.3,3.66411587]
[1745299970065,19.59876722,1576.6,1576.3,3.66411587]
[1745299970619,13.25569653,1576.6,1576.3,10.82530052]
[1745299970733,6.08,1576.6,1576.4,6.34354284]
[1745299971065,6.08,1576.6,1576.4,6.40697016]
[1745299971448,6.08,1576.6,1576.3,10.82525268]
[1745299971964,6.08,1576.6,1576.3,10.82519738]
[1745299972264,6.08,1576.6,1576.5,3.66411587]
[1745299973367,7.17460817,1576.9,1576.5,10.0072811]
[1745299973579,13.5164548,1576.9,1576.6,5.346]
[1745299973728,6.34203332,1576.8,1576.6,5.346]
[1745299973932,12.68427571,1576.8,1576.6,5.346]
[1745299974157,6.34203332,1576.8,1576.6,5.346]
[1745299974565,13.25454621,1576.9,1576.6,5.346]
[1745299974778,19.59641487,1576.9,1576.6,5.346]
[1745299976352,6.3420157,1576.8,1576.6,5.346]
[1745299980778,19.5963863,1576.9,1576.6,5.346]
[1745299981076,19.59645176,1576.9,1576.6,5.346]
[1745299981378,13.25454621,1576.9,1576.6,5.346]
[1745299981583,13.25454621,1576.9,1576.6,6.1016]
[1745299981882,13.25448889,1576.9,1576.6,6.1016]
[1745299982691,19.59637153,1576.9,1576.6,6.1016]
[1745299982854,6.34236062,1576.7,1576.6,5.346]
[1745299983044,7.14736062,1576.7,1576.6,5.346]
[1745299983561,13.22736062,1576.7,1576.6,5.346]
[1745299985284,6.08,1576.7,1576.6,5.346]
[1745299986586,12.42236062,1576.7,1576.6,5.346]
[1745299987085,6.34316523,1576.5,1576.2,20.91]
[1745299987258,6.34316523,1576.5,1576.4,5.345]
[1745299990091,12.42292962,1576.6,1576.4,5.345]
[1745299991681,18.76597418,1576.6,1576.4,5.345]
[1745299991881,6.08,1576.6,1576.4,5.345]
[1745299992082,12.42289407,1576.6,1576.4,5.345]
[1745299995063,7.17316523,1576.5,1576.4,5.345]
[1745299995892,6.34356762,1576.4,1576.0,25.35431587]
[1745299996060,6.34397005,1576.3,1576.2,5.346]
[1745300001119,12.42397005,1576.3,1576.2,5.346]
[1745300007119,6.08,1576.3,1576.2,5.346]
[1745300007416,6.08,1576.3,1576.2,9.01011587]
[1745300008848,6.08,1576.3,1576.2,9.84071587]
[1745300012826,12.42356762,1576.4,1576.2,9.84071587]
[1745300013037,12.42356762,1576.4,1576.2,9.01011587]
[1745300013236,6.34397005,1576.3,1576.2,5.346]
[1745300018740,12.42397005,1576.3,1576.2,5.346]
[1745300024036,13.21547005,1576.3,1576.2,5.346]
[1745300024608,13.56931018,1576.3,1576.2,5.346]
[1745300024808,16.19497463,1576.3,1576.2,5.346]
[1745300026138,15.8411345,1576.3,1576.2,5.346]
[1745300027531,13.21547005,1576.3,1576.2,5.346]
[1745300031279,13.56906089,1576.3,1576.2,5.346]
[1745300031448,20.24506089,1576.3,1576.2,5.346]
[1745300031766,6.34578187,1575.9,1575.7,3.66411587]
[1745300031932,12.42578187,1575.9,1575.8,5.346]
[1745300034263,6.08,1575.9,1575.8,6.1681]
[1745300034468,6.08,1575.9,1575.8,12.51408299]
[1745300035376,6.08,1575.9,1575.8,6.1681]
[1745300035872,12.4255803,1575.9,1575.8,6.1681]
[1745300036473,6.3455803,1575.9,1575.8,6.1681]
[1745300036647,6.34521038,1576.0,1575.8,6.1681]
[1745300036988,12.42494681,1576.1,1576.0,1.3721]
[1745300036989,6.08,1576.1,1576.0,1.3721]
[1745300037188,6.08,1576.5,1576.4,0.8221]
[1745300037385,6.34125875,1577.0,1576.6,6.34254395]
[1745300037386,6.67209956,1577.0,1576.6,6.34254395]
[1745300037538,0.33075472,1577.0,1576.8,3.66411587]
[1745300037743,6.08,1577.1,1577.0,0.8221]
[1745300037966,6.08,1577.3,1577.0,4.48621587]
[1745300038212,6.18,1577.4,1577.2,3.66411587]
[1745300038369,6.18,1577.4,1577.3,6.69557278]
[1745300038565,6.18,1577.4,1577.3,6.1691]
[1745300038768,6.18,1577.4,1577.3,5.347]
[1745300039081,0.1,1577.4,1577.3,5.347]
[1745300039292,0.1,1577.4,1577.3,0.8854921]
[1745300039472,0.1,1577.4,1577.3,5.347]
[1745300039473,6.43954608,1577.4,1577.3,5.347]
[1745300039670,10.08350069,1577.4,1577.3,5.347]
[1745300040050,9.43954608,1577.4,1577.3,5.347]
[1745300042745,0.1,1577.4,1577.3,5.347]
[1745300047553,6.43954608,1577.4,1577.3,5.347]
[1745300047877,0.8515,1577.4,1577.3,5.347]
[1745300050067,0.1,1577.4,1577.3,5.347]
[1745300050264,0.1,1577.4,1577.3,6.1778]
[1745300050578,0.1,1577.4,1577.3,12.51774801]
[1745300052294,0.1,1577.4,1577.3,6.1778]
[1745300052500,0.1,1577.4,1577.3,5.347]
[1745300052676,12.51954608,1577.4,1577.3,5.347]
[1745300053598,18.15074203,1577.4,1577.3,5.347]
[1745300053760,14.48662616,1577.4,1577.3,5.347]
[1745300054563,12.51954608,1577.4,1577.3,5.347]
[1745300057302,6.18,1577.4,1577.3,5.347]
[1745300057793,6.18,1577.4,1577.3,11.68694801]
[1745300059296,6.18,1577.4,1577.3,5.347]
[1745300059902,6.18,1577.4,1577.3,11.68694801]
[1745300060104,6.18,1577.4,1577.3,5.347]
[1745300062722,0.1,1577.4,1577.3,11.68694801]
[1745300063011,0.1,1577.4,1577.3,11.75033951]
[1745300063221,0.1,1577.4,1577.3,16.73186388]
[1745300063744,0.1,1577.4,1577.3,19.73186388]
[1745300067538,6.08,1578.2,1577.8,7.6901389]
[1745300067713,6.08,1578.3,1578.0,10.00089464]
[1745300068274,6.08,1578.3,1578.0,10.06425834]
[1745300068557,0.1,1578.4,1578.1,7.13871463]
[1745300068853,0.1,1578.4,1578.1,7.13888012]
[1745300069536,0.9063,1578.4,1578.1,0.8022]
[1745300070050,0.1,1578.4,1578.1,7.20216929]
[1745300070223,0.1,1578.4,1578.1,0.8022]
[1745300070419,0.1,1578.4,1578.1,7.13870715]
[1745300070637,6.43568513,1578.4,1578.1,0.8022]
[1745300070948,0.1,1578.4,1578.1,7.13875805]
[1745300071445,0.1,1578.4,1578.2,6.39948619]
[1745300071751,0.1,1578.4,1578.3,5.34]
[1745300076346,0.1,1578.4,1578.3,15.34004693]
[1745300076513,0.1,1578.4,1578.3,6.1422]
[1745300077150,0.1,1578.4,1578.3,12.47813106]
[1745300078020,0.1,1578.4,1578.3,12.54148126]
[1745300078649,0.1,1578.4,1578.3,13.09148126]
[1745300078820,0.1,1578.4,1578.3,13.02813106]
[1745300079758,0.1,1578.4,1578.3,16.02813106]
[1745300084066,0.1,1578.4,1578.3,5.34]
[1745300084424,0.1,1578.4,1578.3,11.73928205]
[1745300084971,0.1,1578.4,1578.3,15.89004693]
[1745300085265,0.1,1578.4,1578.3,11.67593106]
[1745300086061,0.1,1578.4,1578.3,15.40339675]
[1745300086229,0.1,1578.4,1578.3,15.34004693]
[1745300087363,0.1,1578.4,1578.3,11.67593106]
[1745300087528,0.1,1578.4,1578.3,18.95339675]
[1745300087732,0.1,1578.4,1578.3,18.89004693]
[1745300091072,0.1,1578.4,1578.3,18.89004693]
[1745300093081,0.1,1578.4,1578.3,19.68254693]
[1745300094567,0.3981654,1578.8,1578.7,7.67682571]
[1745300094777,0.3981654,1578.8,1578.7,19.84327118]
[1745300094981,0.3981654,1578.8,1578.7,19.77994158]
[1745300095133,1.2183654,1578.8,1578.7,9.10311587]
[1745300095484,1.2183654,1578.8,1578.7,5.439]
[1745300095647,0.3981654,1578.8,1578.7,5.439]
[1745300095973,0.3981654,1578.8,1578.7,11.77332571]
[1745300096946,0.3981654,1578.8,1578.7,19.75994158]
[1745300097664,0.3981654,1578.8,1578.7,18.98744158]
[1745300097864,0.3981654,1578.8,1578.7,19.75994158]
[1745300099295,0.3981654,1578.8,1578.7,20.24024485]
[1745300099639,0.9202,1579.4,1579.2,6.33229602]
[1745300099958,0.1,1579.4,1579.3,11.83323275]
[1745300100272,0.1,1579.4,1579.3,12.60573275]
[1745300100473,0.1,1579.4,1579.2,9.99641189]
[1745300100474,6.33218735,1579.3,1579.1,5.438]
[1745300100662,6.33312222,1579.0,1578.8,5.438]
[1745300100977,0.8202,1578.9,1578.8,5.438]
[1745300101480,7.15372333,1578.9,1578.8,5.438]
[1745300101786,0.8202,1578.9,1578.8,5.438]
[1745300103765,7.15372333,1578.9,1578.8,5.438]
[1745300105673,15.19043133,1578.9,1578.8,5.438]
[1745300105850,15.19043133,1578.9,1578.4,5.438]
[1745300105851,6.33534319,1578.5,1578.4,5.438]
[1745300106081,0.8202,1578.6,1578.4,5.438]
[1745300106269,7.15506066,1578.6,1578.4,5.438]
[1745300106994,0.8202,1578.6,1578.4,5.438]
[1745300107191,6.33512828,1578.5,1578.4,5.438]
[1745300107491,6.33512828,1578.5,1578.2,26.318]
[1745300107492,7.15613106,1578.3,1578.2,26.318]
[1745300107712,0.8202,1578.3,1578.2,26.318]
[1745300108468,7.15613106,1578.3,1578.2,26.318]
[1745300108869,6.08,1578.5,1578.2,32.65415541]
[1745300109705,6.08,1578.5,1578.2,26.318]
[1745300109903,12.41516218,1578.5,1578.2,26.318]
[1745300110095,7.12218076,1578.4,1578.2,26.318]
[1745300110809,13.45804143,1578.4,1578.2,26.318]
[1745300111003,7.12218076,1578.4,1578.2,26.318]
[1745300111207,13.45802722,1578.4,1578.2,26.318]
[1745300111402,7.12218076,1578.4,1578.2,26.318]
[1745300111806,0.7866,1578.4,1578.2,26.318]
[1745300112108,7.12233111,1578.4,1578.2,26.318]
[1745300112309,8.1649828,1578.4,1578.2,26.318]
[1745300112690,14.2449828,1578.4,1578.2,26.318]
[1745300112875,6.08,1578.8,1578.4,0.55]
[1745300113075,6.33437692,1578.7,1578.4,0.55]
[1745300113507,7.12097692,1578.7,1578.3,9.99990833]
[1745300114318,7.12097692,1578.7,1578.4,0.063347]
[1745300114319,0.7866,1578.7,1578.4,0.063347]
[1745300114620,0.7866,1578.7,1578.4,6.39866256]
[1745300115698,0.7866,1578.7,1578.4,0.063347]
[1745300116609,0.7866,1578.7,1578.3,9.99976879]
[1745300116786,0.7866,1578.7,1578.3,16.81747137]
[1745300117109,0.7866,1578.7,1578.3,10.48177941]
[1745300117419,13.45561794,1578.7,1578.3,4.14612649]
[1745300117590,6.33475825,1578.6,1578.3,3.48201062]
[1745300117790,6.33526361,1578.5,1578.3,0.48201062]
[1745300117993,0.7866,1578.5,1578.2,26.318]
[1745300118193,7.12187887,1578.5,1578.2,26.318]
[1745300118394,6.8666,1578.5,1578.2,26.318]
[1745300118803,13.20175978,1578.5,1578.2,26.318]
[1745300119023,6.8666,1578.5,1578.2,26.318]
[1745300119322,13.20174818,1578.5,1578.2,26.318]
[1745300119530,13.20174818,1578.5,1578.2,5.438]
[1745300120220,13.20174818,1578.5,1578.2,5.92217258]
[1745300120405,19.53717595,1578.5,1578.2,5.92217258]
[1745300120611,13.20174818,1578.5,1578.2,5.92217258]
[1745300121721,6.33572394,1578.4,1578.2,5.92217258]
[1745300122441,6.33593106,1578.3,1578.2,5.438]
[1745300122592,7.12253106,1578.3,1578.2,5.438]
[1745300125798,6.8668,1578.4,1578.2,5.438]
[1745300125998,6.08,1578.4,1578.2,5.438]
[1745300127208,6.33570327,1578.4,1578.2,5.438]
[1745300127409,7.12209633,1578.5,1578.2,5.438]
[1745300127594,13.4575538,1578.5,1578.2,5.438]
[1745300127798,6.33569523,1578.4,1578.2,5.438]
[1745300128694,6.33593106,1578.3,1578.2,5.438]
[1745300129942,6.33569523,1578.4,1578.2,5.438]
[1745300130240,12.67151815,1578.4,1578.2,5.438]
[1745300130447,6.33569523,1578.4,1578.2,5.438]
[1745300130613,6.33593106,1578.3,1578.2,5.438]
[1745300131240,6.33569523,1578.4,1578.2,5.438]
[1745300131409,6.33569523,1578.4,1578.2,5.75367188]
[1745300132037,6.33593106,1578.3,1578.2,5.75367188]
[1745300134413,12.41569523,1578.4,1578.2,5.75367188]
[1745300137545,7.12273106,1578.3,1578.2,5.75367188]
[1745300139012,13.20273106,1578.3,1578.2,5.75367188]
[1745300140245,6.08,1578.3,1578.2,5.75367188]
[1745300140858,12.41593106,1578.3,1578.2,5.75367188]
[1745300144932,13.21733106,1578.3,1578.2,5.75367188]
[1745300145131,15.17263369,1578.3,1578.2,0.31567188]
[1745300145434,15.17263369,1578.3,1577.9,5.476]
[1745300145435,6.33649403,1578.2,1577.9,5.476]
[1745300145637,12.41649403,1578.2,1577.9,5.476]
[1745300148572,6.33686566,1578.1,1577.9,5.476]
[1745300148779,18.75321621,1578.2,1577.9,5.476]
[1745300149062,6.33673459,1578.1,1577.9,5.476]
[1745300149552,20.90410056,1578.2,1577.9,5.476]
[1745300149865,14.56748591,1578.2,1577.9,5.476]
[1745300150067,0.8014,1578.1,1577.9,5.476]
[1745300150273,12.41745082,1578.0,1577.7,0.8056]
[1745300150476,12.41745082,1578.0,1577.7,5.476]
[1745300150477,12.67539646,1577.9,1577.7,5.476]
[1745300150648,7.13894159,1577.9,1577.7,5.476]
[1745300151250,7.13894159,1577.9,1577.8,0.23024111]
[1745300151463,9.09457467,1577.9,1577.8,0.23024111]
[1745300151663,7.13894159,1577.9,1577.8,0.23024111]
[1745300153635,13.21894159,1577.9,1577.8,0.23024111]
[1745300156276,13.22064159,1577.9,1577.8,0.23024111]
[1745300156670,7.14178502,1577.7,1577.4,5.476]
[1745300156857,12.41888184,1577.6,1577.4,5.476]
[1745300157055,12.41888184,1577.6,1577.5,0.17892614]
[1745300157272,6.08,1577.6,1577.5,0.17892614]
[1745300157966,6.33838374,1577.7,1577.5,0.98102614]
[1745300158168,12.41808515,1577.8,1577.5,0.98102614]
[1745300158872,6.33848529,1577.7,1577.5,0.98102614]
[1745300159485,6.33848529,1577.7,1577.5,0.17892614]
[1745300159654,6.33874239,1577.6,1577.5,0.17892614]
[1745300161088,7.14158529,1577.7,1577.5,0.17892614]
[1745300161291,18.75640542,1577.8,1577.5,0.17892614]
[1745300161495,12.41819429,1577.8,1577.5,0.17892614]
[1745300161665,18.75647259,1577.8,1577.5,0.17892614]
[1745300162189,6.33842186,1577.7,1577.5,0.17892614]
[1745300162513,6.33874239,1577.6,1577.5,0.17892614]
[1745300163095,12.41874239,1577.6,1577.5,0.17892614]
[1745300163602,6.33914421,1577.5,1577.4,5.477]
[1745300164465,6.8831,1577.5,1577.3,5.477]
[1745300164667,7.02787742,1577.4,1577.3,5.477]
[1745300165654,6.33956742,1577.4,1577.3,5.477]